bitfinex-derivatives/quotes_BTCF0:USTF0_20250822
["timestamp","ask_amount","ask_price","bid_price","bid_amount"]
[1755822826780,0.26573,112840.0,112830.0,2.28623658]
[1755822827182,0.23982,112840.0,112830.0,2.28623658]
[1755822828985,0.24937,112840.0,112830.0,2.28623658]
[1755822832684,0.21815,112840.0,112830.0,2.28623658]
[1755822833191,0.21815,112840.0,112830.0,2.37488568]
[1755822833989,0.21815,112840.0,112830.0,2.28623658]
[1755822834184,0.21815,112840.0,112830.0,2.37488568]
[1755822837992,0.19535,112840.0,112830.0,2.37488568]
[1755822838290,0.02276,112850.0,112830.0,2.57617233]
[1755822838495,0.02276,112850.0,112840.0,0.72038281]
[1755822838995,0.04426,112850.0,112840.0,0.72038281]
[1755822839184,0.05381,112850.0,112840.0,0.72038281]
[1755822839585,0.05481,112850.0,112840.0,0.80902391]
[1755822839797,0.05481,112850.0,112840.0,0.72038281]
[1755822840905,0.05481,112850.0,112840.0,0.72138281]
[1755822841708,0.05381,112850.0,112840.0,0.72238281]
[1755822842306,0.08873,112850.0,112840.0,0.72238281]
[1755822842508,0.05381,112850.0,112840.0,0.64306573]
[1755822848115,0.05381,112850.0,112840.0,0.90866573]
[1755822848414,0.05381,112850.0,112840.0,1.46839235]
[1755822849111,0.05381,112850.0,112840.0,1.55703365]
[1755822849510,0.05381,112850.0,112840.0,1.46839235]
[1755822850214,0.02276,112850.0,112840.0,1.46839235]
[1755822850415,0.08463,112850.0,112840.0,1.46839235]
[1755822850608,0.11955,112850.0,112840.0,1.46839235]
[1755822851215,0.11955,112850.0,112840.0,1.54770943]
[1755822852715,0.11955,112850.0,112840.0,1.46839235]
[1755822854119,0.11955,112850.0,112840.0,1.1883949]
[1755822855517,0.11955,112850.0,112840.0,1.46839235]
[1755822856321,0.11955,112850.0,112840.0,1.1883949]
[1755822857323,0.11955,112850.0,112840.0,1.46839235]
[1755822857521,0.11955,112850.0,112840.0,1.1883949]
[1755822859222,0.11955,112850.0,112840.0,1.26771198]
[1755822859723,0.11955,112850.0,112840.0,1.1883949]
[1755822860115,0.11955,112850.0,112840.0,1.26771198]
[1755822861227,0.11955,112850.0,112840.0,1.1883949]
[1755822861526,0.05467,112860.0,112840.0,1.46870145]
[1755822861725,0.05467,112860.0,112850.0,1.79679788]
[1755822861925,0.11864,112860.0,112850.0,1.79679788]
[1755822862423,0.0711,112860.0,112850.0,1.79679788]
[1755822862624,0.05467,112860.0,112850.0,1.81287198]
[1755822862825,0.05467,112860.0,112850.0,1.7335549]
[1755822863017,0.05567,112860.0,112850.0,1.7335549]
[1755822863216,0.05567,112860.0,112850.0,1.81287198]
[1755822863626,0.05567,112860.0,112850.0,1.7335549]
[1755822864325,0.05567,112860.0,112850.0,3.2335549]
[1755822865125,0.05567,112860.0,112850.0,3.31287198]
[1755822865728,0.05467,112860.0,112850.0,3.31487198]
[1755822865927,0.02376,112860.0,112850.0,3.31487198]
[1755822866226,0.02376,112860.0,112850.0,3.31787198]
[1755822866427,0.04477,112860.0,112850.0,3.31787198]
[1755822866628,0.05467,112860.0,112850.0,3.31787198]
[1755822866828,0.05467,112860.0,112850.0,3.31687198]
[1755822867128,0.05467,112860.0,112850.0,3.2375549]
[1755822868828,0.03366,112860.0,112850.0,3.2375549]
[1755822869030,0.02376,112860.0,112850.0,3.2375549]
[1755822869329,0.02376,112860.0,112850.0,3.2355549]
[1755822869529,0.02376,112860.0,112850.0,3.2375549]
[1755822869720,0.04477,112860.0,112850.0,3.2375549]
[1755822871332,0.02376,112860.0,112850.0,3.3261881]
[1755822871532,0.06906,112870.0,112850.0,3.4148213]
[1755822871719,0.06906,112870.0,112860.0,0.98398349]
[1755822871920,0.06906,112870.0,112860.0,1.24958349]
[1755822872832,0.06906,112870.0,112860.0,1.25058349]
[1755822873328,0.05467,112870.0,112860.0,1.25058349]
[1755822873627,0.02376,112870.0,112860.0,1.25158349]
[1755822874235,0.05467,112870.0,112860.0,1.25158349]
[1755822874825,0.05467,112870.0,112860.0,1.53158094]
[1755822875732,0.05467,112870.0,112860.0,1.25158349]
[1755822876826,0.04477,112870.0,112860.0,1.25158349]
[1755822877030,0.04477,112870.0,112860.0,1.53158094]
[1755822877737,0.04477,112870.0,112860.0,1.26598094]
[1755822878237,0.05467,112870.0,112860.0,1.26598094]
[1755822878938,0.03366,112870.0,112860.0,1.26598094]
[1755822879139,0.05467,112870.0,112860.0,1.26598094]
[1755822880040,0.04477,112870.0,112860.0,1.26598094]
[1755822880241,0.08549,112870.0,112860.0,1.26598094]
[1755822880440,0.02376,112870.0,112860.0,1.26598094]
[1755822880640,0.02376,112870.0,112860.0,1.35460654]
[1755822881741,0.02376,112870.0,112860.0,1.37073503]
[1755822883639,0.02376,112870.0,112860.0,1.63633503]
[1755822884138,0.02376,112870.0,112860.0,1.55701795]
[1755822884337,0.02376,112870.0,112860.0,3.24205795]
[1755822886444,0.0711,112880.0,112860.0,3.41930525]
[1755822886646,0.08549,112880.0,112870.0,1.79637126]
[1755822886948,0.11864,112880.0,112870.0,1.79637126]
[1755822887947,0.11964,112880.0,112870.0,1.79637126]
[1755822888348,0.11964,112880.0,112870.0,1.7332349]
[1755822888548,0.11964,112880.0,112870.0,1.8218526]
[1755822889146,0.0721,112880.0,112870.0,1.8218526]
[1755822889348,0.0721,112880.0,112870.0,2.0874526]
[1755822889649,0.02476,112880.0,112870.0,2.0874526]
[1755822890049,0.02476,112880.0,112870.0,2.15059239]
[1755822890844,0.02476,112880.0,112870.0,2.15059628]
[1755822891349,0.02476,112880.0,112870.0,2.0874526]
[1755822891644,0.001,112880.0,112870.0,2.10185005]
[1755822891851,0.17888,112890.0,112880.0,0.0886099]
[1755822892049,0.06149,112900.0,112890.0,0.104832]
[1755822892242,0.09423,112900.0,112890.0,1.7721449]
[1755822892550,0.09423,112900.0,112890.0,1.8607469]
[1755822893251,0.09423,112900.0,112890.0,1.93132172]
[1755822893948,0.11695,112900.0,112890.0,1.84271972]
[1755822894252,0.11695,112900.0,112890.0,1.28372482]
[1755822894446,0.11695,112900.0,112890.0,1.84326994]
[1755822895249,0.11695,112900.0,112890.0,1.84526994]
[1755822895947,0.11695,112900.0,112890.0,1.85408652]
[1755822896151,0.11695,112900.0,112890.0,1.57331396]
[1755822896645,0.11695,112900.0,112890.0,0.76091396]
[1755822896951,0.39752256,112900.0,112890.0,0.95684602]
[1755822897150,0.39752256,112900.0,112890.0,0.0813914]
[1755822897450,0.10781,112890.0,112880.0,0.87541462]
[1755822897646,0.11695,112880.0,112870.0,0.06313462]
[1755822897842,0.47855,112880.0,112870.0,0.90611331]
[1755822898045,0.47855,112880.0,112870.0,0.94094331]
[1755822898555,0.47655,112880.0,112870.0,0.94507331]
[1755822898756,0.47575,112880.0,112870.0,0.94507331]
[1755822898951,0.77565,112880.0,112870.0,0.94507331]
[1755822899149,0.77565,112880.0,112870.0,1.24365587]
[1755822899350,0.77565,112880.0,112870.0,1.24465587]
[1755822900240,0.77565,112880.0,112870.0,0.96488331]
[1755822900442,1.05622256,112880.0,112870.0,0.07313331]
[1755822900853,1.05622256,112880.0,112870.0,0.06413462]
[1755822901152,0.77645,112880.0,112870.0,0.06413462]
[1755822901347,1.25622256,112880.0,112870.0,0.07295878]
[1755822901549,1.25622256,112880.0,112870.0,0.00982416]
[1755822901742,1.25622256,112880.0,112860.0,0.87569462]
[1755822901743,1.25722256,112880.0,112860.0,0.87569462]
[1755822901941,1.25722256,112880.0,112860.0,0.9061237]
[1755822901942,0.47775,112870.0,112860.0,0.9061237]
[1755822902351,0.75752256,112870.0,112860.0,0.0718637]
[1755822902541,0.75752256,112870.0,112860.0,0.00872908]
[1755822902744,0.47775,112870.0,112860.0,0.0217]
[1755822903051,0.47775,112870.0,112850.0,1.19299718]
[1755822903353,0.47775,112860.0,112850.0,1.19299718]
[1755822903543,0.47775,112860.0,112850.0,1.23505718]
[1755822903947,0.47775,112860.0,112850.0,0.95528462]
[1755822904150,0.47775,112860.0,112850.0,1.24377826]
[1755822904345,0.11695,112860.0,112850.0,1.26849826]
[1755822904950,0.11695,112860.0,112850.0,1.20536364]
[1755822905146,0.08421,112860.0,112850.0,1.20536364]
[1755822905350,0.02272,112860.0,112850.0,1.20536364]
[1755822905548,0.03286,112860.0,112850.0,1.20536364]
[1755822905751,0.0551,112860.0,112850.0,1.20536364]
[1755822905943,0.08721,112860.0,112850.0,1.20536364]
[1755822906148,0.08721,112860.0,112850.0,1.56616364]
[1755822906345,0.003,112860.0,112850.0,1.9353697]
[1755822906854,0.003,112860.0,112850.0,1.65559714]
[1755822907448,0.003,112860.0,112850.0,1.9353697]
[1755822909157,0.003,112860.0,112850.0,1.8467362]
[1755822909653,0.003,112860.0,112850.0,1.9353696]
[1755822910354,0.001,112860.0,112850.0,2.2009696]
[1755822910557,0.001,112860.0,112850.0,2.2019696]
[1755822911557,0.02272,112870.0,112850.0,2.228473]
[1755822911753,0.06793,112870.0,112860.0,1.02453512]
[1755822912551,0.06793,112870.0,112860.0,1.08766974]
[1755822912951,0.10067,112870.0,112860.0,0.52812462]
[1755822913156,0.10067,112870.0,112860.0,0.8345]
[1755822913157,0.11695,112870.0,112860.0,0.8345]
[1755822913354,0.75752256,112870.0,112860.0,0.8345]
[1755822913859,0.47775,112870.0,112860.0,0.8345]
[1755822914063,0.47775,112870.0,112860.0,0.86933]
[1755822915262,0.47775,112870.0,112860.0,0.8345]
[1755822915460,0.47775,112870.0,112860.0,0.88969]
[1755822915649,0.47875,112870.0,112860.0,0.89227]
[1755822915856,0.48075,112870.0,112860.0,0.8128]
[1755822916049,0.76052256,112870.0,112850.0,0.3400357]
[1755822916256,0.76052256,112870.0,112850.0,1.20207826]
[1755822916257,0.08557,112860.0,112850.0,1.20207826]
[1755822916561,0.11695,112860.0,112850.0,1.20207826]
[1755822917564,0.41685,112860.0,112850.0,1.22458826]
[1755822917767,0.41685,112860.0,112850.0,1.16145364]
[1755822918460,0.38411,112860.0,112850.0,1.52225364]
[1755822918765,0.41709,112860.0,112850.0,1.52225364]
[1755822919659,0.41709,112860.0,112850.0,1.16145364]
[1755822920060,0.41709,112860.0,112850.0,0.92472108]
[1755822920261,0.41709,112860.0,112850.0,1.20449364]
[1755822923260,0.41709,112860.0,112850.0,1.56529364]
[1755822923558,0.41709,112860.0,112850.0,1.26762826]
[1755822924665,0.41709,112860.0,112850.0,1.62842826]
[1755822925162,0.41709,112860.0,112850.0,1.64785212]
[1755822927271,0.41709,112860.0,112850.0,1.64985212]
[1755822927970,0.41709,112860.0,112850.0,1.64785212]
[1755822928165,0.41709,112860.0,112850.0,1.64985212]
[1755822928669,0.41709,112860.0,112850.0,1.64785212]
[1755822932575,0.37028,112860.0,112850.0,1.64785212]
[1755822932774,0.37028,112860.0,112850.0,1.73648542]
[1755822932975,0.37028,112860.0,112850.0,1.64785212]
[1755822933375,0.38479,112860.0,112850.0,1.64785212]
[1755822934176,0.41777,112860.0,112850.0,1.64785212]
[1755822935072,0.41777,112860.0,112850.0,1.36807956]
[1755822935273,0.41777,112860.0,112850.0,1.64785212]
[1755822937380,0.38479,112860.0,112850.0,1.73748542]
[1755822937680,0.41777,112860.0,112850.0,1.73748542]
[1755822938279,0.41777,112860.0,112850.0,1.64885212]
[1755822938575,0.41777,112860.0,112850.0,1.64785212]
[1755822939186,0.41777,112860.0,112850.0,1.36807956]
[1755822939374,0.41777,112860.0,112850.0,1.64785212]
[1755822940682,0.41777,112860.0,112850.0,1.73648542]
[1755822941379,0.38479,112860.0,112850.0,1.73648542]
[1755822941981,0.41777,112860.0,112850.0,1.73648542]
[1755822942981,0.41777,112860.0,112850.0,1.64785212]
[1755822943185,0.41777,112860.0,112850.0,1.5847175]
[1755822943382,0.41777,112860.0,112850.0,1.30494494]
[1755822943689,0.41777,112860.0,112850.0,1.5847175]
[1755822944390,0.41777,112860.0,112850.0,1.64797142]
[1755822947684,0.41777,112860.0,112850.0,1.28717142]
[1755822947885,0.41777,112860.0,112850.0,1.64797142]
[1755822948883,0.41775,112860.0,112850.0,1.62854756]
[1755822952891,0.41775,112860.0,112850.0,1.348775]
[1755822953093,0.41775,112860.0,112850.0,1.62854756]
[1755822955695,0.41775,112860.0,112850.0,1.56529364]
[1755822956491,0.41775,112860.0,112850.0,1.28552108]
[1755822956803,0.41775,112860.0,112850.0,1.56529364]
[1755822957297,0.41775,112860.0,112850.0,1.58530643]
[1755822958897,0.41775,112860.0,112850.0,1.58630643]
[1755822959093,0.37028,112860.0,112850.0,1.58630643]
[1755822959492,0.38447,112860.0,112850.0,1.58630643]
[1755822959691,0.38447,112860.0,112850.0,1.58530643]
[1755822960401,0.41743,112860.0,112850.0,1.58530643]
[1755822960698,0.41743,112860.0,112850.0,1.67393963]
[1755822961098,0.41743,112860.0,112850.0,1.58530643]
[1755822961499,0.2999,112860.0,112850.0,1.39416707]
[1755822961695,0.2999,112860.0,112850.0,1.67393963]
[1755822962203,0.2999,112860.0,112850.0,1.95371219]
[1755822962402,0.2999,112860.0,112850.0,1.95406803]
[1755822963597,0.2999,112860.0,112850.0,2.21966803]
[1755822964195,0.2999,112860.0,112850.0,2.13103483]
[1755822964400,0.2999,112860.0,112850.0,1.85108566]
[1755822966300,0.32298,112860.0,112850.0,1.85108566]
[1755822967104,0.33255,112860.0,112850.0,1.85108566]
[1755822970204,0.35362,112860.0,112850.0,1.85108566]
[1755822973205,0.35362,112860.0,112850.0,1.93040274]
[1755822974716,0.35362,112860.0,112850.0,1.65045095]
[1755822974912,0.41667,112860.0,112850.0,1.92980274]
[1755822975615,0.41667,112860.0,112850.0,1.85048566]
[1755822976018,0.38371,112860.0,112850.0,1.85048566]
[1755822976317,0.38371,112860.0,112850.0,1.92980274]
[1755822978222,0.41541,112860.0,112850.0,1.92980274]
[1755822978719,0.41541,112860.0,112850.0,1.85048566]
[1755822981223,0.41541,112860.0,112850.0,1.58488566]
[1755822981414,0.38371,112860.0,112850.0,1.58488566]
[1755822982313,0.41541,112860.0,112850.0,1.66420274]
[1755822982818,0.41541,112860.0,112850.0,1.58488566]
[1755822983621,0.38371,112860.0,112850.0,1.58488566]
[1755822986122,0.41541,112860.0,112850.0,1.58488566]
[1755822986324,0.41541,112860.0,112850.0,1.86491459]
[1755822986512,0.38371,112860.0,112850.0,1.86491459]
[1755822986719,0.41541,112860.0,112850.0,1.86491459]
[1755822989019,0.69540036,112860.0,112850.0,0.49249387]
[1755822989221,0.69540036,112860.0,112850.0,1.58480423]
[1755822989423,0.69540036,112860.0,112850.0,1.6481285]
[1755822989615,0.41541,112860.0,112850.0,1.6481285]
[1755822990423,0.41541,112860.0,112850.0,1.64819281]
[1755822992521,0.41541,112860.0,112850.0,1.58486854]
[1755822993622,0.41541,112860.0,112850.0,1.30481387]
[1755822993833,0.41541,112860.0,112850.0,1.58486854]
[1755822997528,0.38371,112860.0,112850.0,1.58486854]
[1755822997825,0.41541,112860.0,112850.0,1.58486854]
[1755823000726,0.36952,112860.0,112850.0,1.58486854]
[1755823000926,0.38326,112860.0,112850.0,1.58486854]
[1755823001128,0.41496,112860.0,112850.0,1.58486854]
[1755823002126,0.41496,112860.0,112850.0,1.36813877]
[1755823002327,0.41496,112860.0,112850.0,1.64819344]
[1755823006023,0.33255,112860.0,112850.0,1.64819344]
[1755823006228,0.2999,112860.0,112850.0,1.64819344]
[1755823006831,0.33412,112860.0,112850.0,1.64819344]
[1755823007131,0.2999,112860.0,112850.0,1.64819344]
[1755823007525,0.2999,112860.0,112850.0,1.58486854]
[1755823008934,0.2999,112860.0,112850.0,1.67350164]
[1755823009131,0.2999,112860.0,112850.0,1.39344697]
[1755823009333,0.2999,112860.0,112850.0,1.58486854]
[1755823009730,0.2999,112860.0,112850.0,1.95355631]
[1755823009935,0.2299,112860.0,112850.0,1.95355631]
[1755823010135,0.22732,112860.0,112850.0,2.31435631]
[1755823010337,0.22732,112860.0,112850.0,2.31411205]
[1755823010534,0.22732,112860.0,112850.0,2.39342913]
[1755823011225,0.22732,112860.0,112850.0,2.39442913]
[1755823011829,0.22732,112860.0,112850.0,2.39542913]
[1755823012436,0.22732,112860.0,112850.0,2.39642913]
[1755823013131,0.22732,112860.0,112850.0,2.39542913]
[1755823013339,0.22732,112860.0,112850.0,2.31811205]
[1755823013538,0.34446,112860.0,112850.0,2.31811205]
[1755823013739,0.34446,112860.0,112850.0,2.22947895]
[1755823014333,0.34446,112860.0,112850.0,1.41715895]
[1755823014544,0.34446,112860.0,112850.0,2.02858349]
[1755823016439,0.34446,112860.0,112850.0,2.02866891]
[1755823016642,0.34446,112860.0,112850.0,1.74865095]
[1755823016839,0.34446,112860.0,112850.0,2.01425095]
[1755823017139,0.34446,112860.0,112850.0,1.65345095]
[1755823017336,0.34446,112860.0,112850.0,0.84141095]
[1755823017530,0.34446,112860.0,112850.0,1.57409387]
[1755823017940,0.34446,112860.0,112850.0,1.85411183]
[1755823018345,0.34446,112860.0,112850.0,1.85211183]
[1755823018545,0.34446,112860.0,112850.0,1.85411183]
[1755823018942,0.34446,112860.0,112850.0,1.93342891]
[1755823019437,0.34446,112860.0,112850.0,1.65241095]
[1755823019638,0.34446,112860.0,112850.0,1.57162891]
[1755823019944,0.34446,112860.0,112850.0,1.2162767]
[1755823020342,0.34446,112860.0,112850.0,1.2162367]
[1755823020739,0.34526,112860.0,112850.0,0.38426391]
[1755823020947,1.26609592,112860.0,112850.0,0.32992283]
[1755823021143,1.26709592,112860.0,112840.0,0.81196]
[1755823021351,0.75795796,112850.0,112840.0,0.81196]
[1755823021845,0.75695796,112850.0,112840.0,0.81196]
[1755823022342,0.75695796,112850.0,112840.0,0.82105513]
[1755823022546,0.75695796,112850.0,112840.0,0.81196]
[1755823022547,1.05435796,112850.0,112840.0,0.81196]
[1755823022739,1.05435796,112850.0,112840.0,0.81296]
[1755823022940,0.75695796,112850.0,112840.0,0.81296]
[1755823023244,0.77434,112850.0,112840.0,0.81296]
[1755823023437,1.05435796,112850.0,112840.0,0.81296]
[1755823023854,1.05435796,112850.0,112840.0,0.001]
[1755823024151,1.05515796,112850.0,112840.0,0.001]
[1755823024754,0.11714,112830.0,112820.0,0.89318882]
[1755823024953,0.75795796,112830.0,112820.0,0.91513882]
[1755823025246,0.75795796,112830.0,112820.0,1.0112059]
[1755823025756,0.08314,112830.0,112820.0,1.37988026]
[1755823026057,0.0238,112830.0,112820.0,1.37988026]
[1755823026358,0.2974,112830.0,112820.0,1.55719006]
[1755823026754,0.2974,112830.0,112820.0,1.91799006]
[1755823026955,0.2974,112830.0,112820.0,1.91879006]
[1755823027450,0.2624,112830.0,112820.0,1.91879006]
[1755823027757,0.2634,112830.0,112820.0,1.91879006]
[1755823028158,0.2644,112830.0,112820.0,1.91879006]
[1755823029053,0.2644,112830.0,112820.0,1.83013366]
[1755823029853,0.2644,112830.0,112820.0,3.33013366]
[1755823030357,0.2644,112830.0,112820.0,3.61015162]
[1755823030553,0.22468,112830.0,112820.0,3.61015162]
[1755823030759,0.14935718,112830.0,112820.0,3.87575162]
[1755823030959,0.14935718,112830.0,112820.0,3.9550687]
[1755823032262,0.14835718,112830.0,112820.0,3.9550687]
[1755823032464,0.14835718,112830.0,112820.0,3.87575162]
[1755823032848,0.14835718,112830.0,112820.0,3.9550687]
[1755823033663,0.14735718,112830.0,112820.0,3.9570687]
[1755823034257,0.14735718,112830.0,112820.0,3.9550687]
[1755823034960,0.0238,112850.0,112830.0,0.3545748]
[1755823035162,0.05431,112860.0,112840.0,1.51599087]
[1755823035363,0.11714,112860.0,112850.0,0.34319087]
[1755823035958,0.11714,112860.0,112850.0,0.54561796]
[1755823036962,0.11814,112860.0,112850.0,0.54561796]
[1755823037855,0.11814,112860.0,112850.0,0.60879087]
[1755823038558,0.12114,112860.0,112850.0,0.60879087]
[1755823039755,0.12114,112860.0,112850.0,0.2656]
[1755823039756,0.76275796,112860.0,112850.0,0.2656]
[1755823040358,0.11528,112850.0,112840.0,1.23597291]
[1755823040554,0.39529796,112850.0,112840.0,1.23597291]
[1755823040755,0.11528,112850.0,112840.0,1.23597291]
[1755823041561,0.11728,112850.0,112840.0,1.23597291]
[1755823041861,0.11828,112850.0,112840.0,1.23597291]
[1755823042359,0.11828,112850.0,112840.0,0.87517291]
[1755823042558,0.11828,112850.0,112840.0,1.23597291]
[1755823042757,0.11828,112850.0,112840.0,0.87517291]
[1755823044062,0.11828,112850.0,112840.0,1.23597291]
[1755823044465,0.11828,112850.0,112840.0,1.51599087]
[1755823045361,0.11828,112850.0,112840.0,0.87517291]
[1755823047964,0.11828,112850.0,112840.0,1.51599087]
[1755823048169,0.11828,112850.0,112840.0,1.15519087]
[1755823048466,0.11828,112850.0,112840.0,1.51599087]
[1755823048665,0.12248,112850.0,112840.0,1.51599087]
[1755823051469,0.12248,112850.0,112840.0,1.23597291]
[1755823051670,0.12248,112850.0,112840.0,1.51599087]
[1755823051865,0.12248,112850.0,112840.0,1.23597291]
[1755823052168,0.12248,112850.0,112840.0,1.51599087]
[1755823054268,0.07617,112850.0,112840.0,1.51599087]
[1755823054676,0.08997,112850.0,112840.0,1.51599087]
[1755823054974,0.12248,112850.0,112840.0,1.51599087]
[1755823055879,0.06038,112850.0,112840.0,1.51599087]
[1755823056072,0.05938,112850.0,112840.0,1.51599087]
[1755823056772,0.02912,112850.0,112840.0,1.51599087]
[1755823057179,0.02812,112850.0,112840.0,1.51599087]
[1755823057475,0.02912,112850.0,112840.0,1.51599087]
[1755823060982,0.02912,112850.0,112840.0,1.45281796]
[1755823061876,0.0062,112850.0,112840.0,1.45281796]
[1755823062278,0.0062,112850.0,112840.0,1.54145846]
[1755823062479,0.0062,112850.0,112840.0,3.04145846]
[1755823063381,0.0062,112850.0,112840.0,3.12077554]
[1755823064175,0.05013,112850.0,112840.0,1.94011708]
[1755823064380,0.12148,112850.0,112840.0,2.67252]
[1755823064976,0.12148,112850.0,112840.0,2.75183708]
[1755823065177,0.12148,112850.0,112840.0,1.25183708]
[1755823065781,0.12148,112850.0,112840.0,2.67252]
[1755823065981,0.12148,112850.0,112840.0,1.17252]
[1755823066285,0.12148,112850.0,112840.0,1.25183708]
[1755823066484,0.12148,112850.0,112840.0,1.53185504]
[1755823069688,0.08897,112850.0,112840.0,1.53185504]
[1755823070089,0.07517,112850.0,112840.0,1.79745504]
[1755823070784,0.02912,112850.0,112840.0,1.79745504]
[1755823072793,0.02912,112850.0,112840.0,1.71813796]
[1755823073294,0.0062,112850.0,112840.0,1.88609554]
[1755823075895,0.0062,112850.0,112840.0,1.62049554]
[1755823078192,0.0062,112850.0,112840.0,1.62049544]
[1755823078493,0.03008,112850.0,112840.0,1.62049544]
[1755823079794,0.05337,112850.0,112840.0,1.62049544]
[1755823080692,0.05337,112850.0,112840.0,1.62037544]
[1755823080693,0.06281,112850.0,112840.0,1.62037544]
[1755823080897,0.12876,112850.0,112840.0,1.53173504]
[1755823081895,0.12876,112850.0,112840.0,1.79733504]
[1755823082096,0.12876,112850.0,112840.0,1.79729504]
[1755823082293,0.12876,112850.0,112840.0,1.71797796]
[1755823082598,0.12876,112850.0,112840.0,0.2656]
[1755823082795,0.40877796,112850.0,112840.0,1.07716]
[1755823083101,0.40957796,112850.0,112830.0,0.72013504]
[1755823083391,0.40257796,112840.0,112830.0,0.3608]
[1755823083587,0.33013796,112840.0,112830.0,0.0633871]
[1755823083793,0.89093796,112840.0,112820.0,0.8920059]
[1755823083998,0.69013796,112830.0,112820.0,0.8920059]
[1755823084198,0.76417796,112830.0,112810.0,0.45962543]
[1755823084395,0.40257796,112820.0,112810.0,0.13134543]
[1755823084593,0.40257796,112820.0,112810.0,0.97621543]
[1755823084790,0.48336,112820.0,112810.0,0.94286543]
[1755823084990,0.03833,112810.0,112800.0,0.0915125]
[1755823085192,0.40157796,112810.0,112800.0,0.92335708]
[1755823085397,0.40157796,112810.0,112800.0,0.95670708]
[1755823085699,0.70147796,112810.0,112800.0,0.87739]
[1755823085897,0.69947796,112810.0,112800.0,0.87739]
[1755823086098,0.69947796,112810.0,112800.0,0.88139]
[1755823086302,1.06027796,112810.0,112800.0,0.81556]
[1755823086496,1.06027796,112810.0,112800.0,0.83837]
[1755823086698,1.06027796,112810.0,112800.0,0.83737]
[1755823087399,0.78026,112810.0,112800.0,0.9367]
[1755823087608,0.78026,112810.0,112800.0,1.21671796]
[1755823089503,0.41946,112810.0,112800.0,1.21671796]
[1755823090203,0.3701,112810.0,112800.0,1.21671796]
[1755823091305,0.33022,112810.0,112800.0,1.21671796]
[1755823091498,0.33022,112810.0,112800.0,1.57751796]
[1755823092208,0.35351,112810.0,112800.0,1.57751796]
[1755823092501,0.2999,112810.0,112800.0,1.85833592]
[1755823092696,0.2999,112810.0,112800.0,1.57831796]
[1755823092893,0.2999,112810.0,112800.0,1.85833592]
[1755823093901,0.2999,112810.0,112800.0,1.04677592]
[1755823094106,0.2999,112810.0,112800.0,1.57767796]
[1755823094407,0.32378,112810.0,112800.0,1.57767796]
[1755823096004,0.2999,112810.0,112800.0,1.57767796]
[1755823098507,0.2999,112810.0,112800.0,1.85769592]
[1755823099706,0.2999,112810.0,112800.0,2.12329592]
[1755823100697,0.3238,112810.0,112800.0,2.12329592]
[1755823101309,0.2999,112810.0,112800.0,2.12329592]
[1755823101504,0.2999,112810.0,112800.0,1.56326]
[1755823101709,0.2999,112810.0,112800.0,1.84327796]
[1755823102110,0.35613,112810.0,112800.0,1.84327796]
[1755823102811,0.2999,112810.0,112800.0,1.84327796]
[1755823103002,0.2999,112810.0,112800.0,1.93194986]
[1755823103305,0.2999,112810.0,112800.0,2.21196782]
[1755823103812,0.2999,112810.0,112800.0,2.12329592]
[1755823104012,0.2999,112810.0,112800.0,1.56326]
[1755823104212,0.3238,112810.0,112800.0,1.84327796]
[1755823104407,0.38649,112810.0,112800.0,1.03155796]
[1755823104613,0.70068796,112810.0,112800.0,1.14459]
[1755823104812,0.70068796,112810.0,112800.0,1.16277]
[1755823105609,0.70068796,112810.0,112800.0,0.89717]
[1755823105814,0.70068796,112810.0,112800.0,0.912]
[1755823106420,0.42067,112810.0,112800.0,0.912]
[1755823107114,1.06228796,112810.0,112800.0,0.83853]
[1755823107518,1.06228796,112810.0,112800.0,0.87092]
[1755823108321,0.78227,112810.0,112800.0,0.87092]
[1755823108522,0.78227,112810.0,112800.0,0.88072]
[1755823109419,0.42067,112810.0,112800.0,1.21581796]
[1755823109726,0.78147,112810.0,112800.0,0.84833]
[1755823110128,0.78147,112810.0,112800.0,0.88072]
[1755823110524,1.06228796,112810.0,112800.0,0.004]
[1755823110723,1.06228796,112810.0,112800.0,0.81568]
[1755823113231,1.06228796,112810.0,112800.0,0.004]
[1755823113624,1.08272568,112810.0,112800.0,0.004]
[1755823113834,1.29388568,112810.0,112800.0,0.004]
[1755823115127,1.27344796,112810.0,112800.0,0.004]
[1755823115333,1.29367606,112810.0,112800.0,0.004]
[1755823116437,1.29287606,112810.0,112800.0,0.004]
[1755823119642,0.04898,112790.0,112780.0,0.84210089]
[1755823119832,0.76158796,112790.0,112780.0,0.03038089]
[1755823120939,0.76158796,112790.0,112780.0,0.03338089]
[1755823121135,1.06148796,112790.0,112780.0,0.03338089]
[1755823121440,1.06148796,112790.0,112780.0,0.07557089]
[1755823121641,1.06148796,112790.0,112780.0,0.08057089]
[1755823122738,1.25844796,112790.0,112780.0,0.04818089]
[1755823123339,1.32941878,112790.0,112770.0,0.82655]
[1755823123537,0.76158796,112780.0,112770.0,0.90638]
[1755823124239,0.76158796,112780.0,112770.0,0.91535255]
[1755823124635,0.48157,112780.0,112770.0,0.94233255]
[1755823124841,0.48157,112780.0,112770.0,0.13061255]
[1755823125041,0.48157,112780.0,112770.0,0.93336]
[1755823125241,0.48157,112780.0,112770.0,0.93936]
[1755823125742,0.88971,112780.0,112770.0,0.93936]
[1755823126143,0.88971,112780.0,112770.0,0.94726696]
[1755823128541,1.16972796,112780.0,112770.0,0.8672]
[1755823128749,1.16972796,112780.0,112770.0,0.008]
[1755823128938,1.98148796,112780.0,112770.0,0.008]
[1755823129247,1.98228796,112780.0,112770.0,0.008]
[1755823129841,2.00241264,112780.0,112770.0,0.008]
[1755823131349,0.0455,112760.0,112750.0,0.90002096]
[1755823131550,0.75780796,112760.0,112750.0,0.08826096]
[1755823131752,0.47779,112760.0,112750.0,0.10474096]
[1755823132146,0.75780796,112760.0,112750.0,0.12903096]
[1755823132342,0.75780796,112760.0,112750.0,0.07101096]
[1755823132542,1.56956796,112760.0,112750.0,0.02128]
[1755823132741,0.11099,112750.0,112740.0,0.09585]
[1755823132945,0.39100796,112750.0,112740.0,0.09585]
[1755823133341,0.38700796,112750.0,112740.0,0.09585]
[1755823133946,0.03868,112740.0,112730.0,0.12014]
[1755823134146,0.36419796,112740.0,112730.0,0.90761]
[1755823134354,0.08218,112740.0,112730.0,0.9319]